[Event "FIDE World Rapid Chess Championship 2021"]
[White "Jobava, Baadur"]
[Black "Dziuba, Marcin"]
[WhiteFideId "13601520"]
[BlackFideId "1112953"]
[WhiteElo "2679"]
[BlackElo "2424"]
[Result "1-0"]
[Round "03"]
[TimeControl "900+10"]
[Date "2021.12.26"]
[WhiteClock "0:00:40"]
[BlackClock "0:00:12"]

1. e4 {[%clk 0:15:13]}  c5 {[%clk 0:15:00]} 2. Nf3 {[%clk 0:15:13]}  d6 {[%clk 0:15:00]} 3. Bb5+ {[%clk 0:15:13]}  Bd7 {[%clk 0:15:00]} 4. Bxd7+ {[%clk 0:15:13]}  Nxd7 {[%clk 0:15:00]} 5. O-O {[%clk 0:14:59]}  Ngf6 {[%clk 0:15:51]} 6. Qe2 {[%clk 0:14:59]}  e6 {[%clk 0:15:51]} 7. c3 {[%clk 0:14:59]}  Be7 {[%clk 0:15:51]} 8. d4 {[%clk 0:14:59]}  O-O {[%clk 0:15:51]} 9. Rd1 {[%clk 0:14:59]}  Qc7 {[%clk 0:15:56]} 10. e5 {[%clk 0:14:48]}  Nd5 {[%clk 0:12:39]} 11. c4 {[%clk 0:12:18]}  N5b6 {[%clk 0:12:29]} 12. Nc3 {[%clk 0:11:52]}  cxd4 {[%clk 0:12:27]} 13. exd6 {[%clk 0:11:08]}  Qxd6 {[%clk 0:10:33]} 14. Nb5 {[%clk 0:11:13]}  Qc6 {[%clk 0:10:11]} 15. b3 {[%clk 0:09:16]}  a6 {[%clk 0:07:56]} 16. Nbxd4 {[%clk 0:09:23]}  Qc7 {[%clk 0:07:56]} 17. a4 {[%clk 0:09:26]}  Rae8 {[%clk 0:05:29]} 18. a5 {[%clk 0:05:56]}  Nc8 {[%clk 0:00:17]} 19. Nxe6 {[%clk 0:05:56]}  Bf6 {[%clk 0:00:17]} 20. Nxc7 {[%clk 0:05:56]}  Rxe2 {[%clk 0:00:17]} 21. Kf1 {[%clk 0:05:56]}  Re4 {[%clk 0:00:19]} 22. Ra2 {[%clk 0:03:58]}  Ne5 {[%clk 0:00:19]} 23. Ba3 {[%clk 0:03:47]}  Be7 {[%clk 0:00:14]} 24. Nxe5 {[%clk 0:03:14]}  Rxe5 {[%clk 0:00:12]} 25. Bb2 {[%clk 0:03:14]}  Rh5 {[%clk 0:00:12]} 26. h3 {[%clk 0:03:14]}  Na7 {[%clk 0:00:12]} 27. Rd7 {[%clk 0:03:14]}  Nc6 {[%clk 0:00:12]} 28. Nd5 {[%clk 0:03:14]}  Bd8 {[%clk 0:00:12]} 29. Bc3 {[%clk 0:00:40]}  Re8 {[%clk 0:00:12]} 30. Rxb7 {[%clk 0:00:40]} 1-0


[Site "http://www.Chess.com"]

[Event "FIDE World Rapid Chess Championship 2021"]
[White "Gelfand, Boris"]
[Black "Erigaisi, Arjun"]
[WhiteFideId "2805677"]
[BlackFideId "35009192"]
[WhiteElo "2648"]
[BlackElo "2397"]
[Result "1/2-1/2"]
[Round "03"]
[TimeControl "900+10"]
[Date "2021.12.26"]
[WhiteClock "0:00:23"]
[BlackClock "0:00:23"]

1. Nf3 {[%clk 0:15:00]}  Nf6 {[%clk 0:15:26]} 2. c4 {[%clk 0:15:28]}  e6 {[%clk 0:15:26]} 3. g3 {[%clk 0:15:28]}  d5 {[%clk 0:15:26]} 4. d4 {[%clk 0:15:28]}  dxc4 {[%clk 0:15:26]} 5. Bg2 {[%clk 0:15:28]}  Nbd7 {[%clk 0:15:26]} 6. O-O {[%clk 0:15:28]}  c6 {[%clk 0:15:26]} 7. a4 {[%clk 0:15:57]}  a5 {[%clk 0:16:04]} 8. Qc2 {[%clk 0:15:57]}  b5 {[%clk 0:16:04]} 9. Ne5 {[%clk 0:15:57]}  Nxe5 {[%clk 0:16:04]} 10. dxe5 {[%clk 0:15:57]}  Nd5 {[%clk 0:16:04]} 11. axb5 {[%clk 0:15:57]}  cxb5 {[%clk 0:16:04]} 12. Nc3 {[%clk 0:15:57]}  Qb6 {[%clk 0:16:04]} 13. Nxd5 {[%clk 0:16:18]}  exd5 {[%clk 0:16:30]} 14. Bxd5 {[%clk 0:16:18]}  Ra7 {[%clk 0:16:30]} 15. b3 {[%clk 0:13:55]}  Bc5 {[%clk 0:16:44]} 16. bxc4 {[%clk 0:13:55]}  b4 {[%clk 0:16:44]} 17. Qe4 {[%clk 0:10:02]}  O-O {[%clk 0:16:47]} 18. Kg2 {[%clk 0:09:55]}  b3 {[%clk 0:16:38]} 19. Bb2 {[%clk 0:07:58]}  a4 {[%clk 0:15:07]} 20. Ra3 {[%clk 0:07:58]}  Qh6 {[%clk 0:14:56]} 21. Rd1 {[%clk 0:06:43]}  Qh3+ {[%clk 0:11:02]} 22. Kg1 {[%clk 0:03:55]}  Qf5 {[%clk 0:11:02]} 23. Qxf5 {[%clk 0:03:55]}  Bxf5 {[%clk 0:11:02]} 24. e4 {[%clk 0:05:49]}  Bg4 {[%clk 0:08:07]} 25. Rda1 {[%clk 0:04:08]}  Bd7 {[%clk 0:07:35]} 26. Kf1 {[%clk 0:04:08]}  Rb8 {[%clk 0:07:35]} 27. Ke2 {[%clk 0:03:08]}  Ra6 {[%clk 0:07:35]} 28. h4 {[%clk 0:03:43]}  g6 {[%clk 0:05:29]} 29. f4 {[%clk 0:03:18]}  h5 {[%clk 0:05:12]} 30. Kd3 {[%clk 0:03:18]}  Kf8 {[%clk 0:05:12]} 31. Rf1 {[%clk 0:01:47]}  Ke8 {[%clk 0:05:24]} 32. Rfa1 {[%clk 0:00:53]}  Bf2 {[%clk 0:04:35]} 33. f5 {[%clk 0:00:07]}  gxf5 {[%clk 0:03:34]} 34. exf5 {[%clk 0:00:48]}  Bxf5+ {[%clk 0:03:34]} 35. Ke2 {[%clk 0:00:48]}  Bxg3 {[%clk 0:03:34]} 36. Rxa4 {[%clk 0:00:48]}  Rxa4 {[%clk 0:03:34]} 37. Rxa4 {[%clk 0:00:48]}  Bxh4 {[%clk 0:03:34]} 38. Ra7 {[%clk 0:00:48]}  Be7 {[%clk 0:03:34]} 39. Ra6 {[%clk 0:00:39]}  Bg6 {[%clk 0:02:38]} 40. e6 {[%clk 0:00:26]}  h4 {[%clk 0:02:38]} 41. exf7+ {[%clk 0:00:26]}  Bxf7 {[%clk 0:02:38]} 42. Rh6 {[%clk 0:00:26]}  Bxd5 {[%clk 0:02:38]} 43. Rh8+ {[%clk 0:00:26]}  Kf7 {[%clk 0:02:38]} 44. Rxb8 {[%clk 0:00:15]}  Bxc4+ {[%clk 0:02:38]} 45. Kf2 {[%clk 0:00:15]}  Kg6 {[%clk 0:02:38]} 46. Bd4 {[%clk 0:00:15]}  Kf5 {[%clk 0:02:38]} 47. Rb7 {[%clk 0:00:17]}  Ke4 {[%clk 0:00:32]} 48. Rxe7+ {[%clk 0:00:17]}  Kxd4 {[%clk 0:00:32]} 49. Rh7 {[%clk 0:00:17]}  b2 {[%clk 0:00:21]} 50. Rxh4+ {[%clk 0:00:23]}  Kd3 {[%clk 0:00:21]} 51. Rh1 {[%clk 0:00:23]}  Ba2 {[%clk 0:00:23]} 52. Re1 {[%clk 0:00:23]}  Kc3 {[%clk 0:00:23]} 53. Re3+ {[%clk 0:00:23]}  Kd4 {[%clk 0:00:23]} 54. Re1 {[%clk 0:00:23]}  Kd3 {[%clk 0:00:23]} 55. Re3+ {[%clk 0:00:23]} 1/2-1/2


[Site "http://www.Chess.com"]

[Event "FIDE World Rapid Chess Championship 2021"]
[White "Antipov, Mikhail Al."]
[Black "Muradli, Mahammad"]
[WhiteFideId "4107012"]
[BlackFideId "13409301"]
[WhiteElo "2644"]
[BlackElo "2285"]
[Result "0-1"]
[Round "03"]
[TimeControl "900+10"]
[Date "2021.12.26"]
[WhiteClock "0:00:13"]
[BlackClock "0:00:18"]

1. e4 {[%clk 0:15:00]}  c5 {[%clk 0:15:00]} 2. Nf3 {[%clk 0:15:19]}  d6 {[%clk 0:15:00]} 3. d4 {[%clk 0:15:19]}  cxd4 {[%clk 0:15:00]} 4. Nxd4 {[%clk 0:15:19]}  Nf6 {[%clk 0:15:00]} 5. Nc3 {[%clk 0:15:19]}  a6 {[%clk 0:15:00]} 6. Be3 {[%clk 0:15:19]}  e5 {[%clk 0:15:00]} 7. Nb3 {[%clk 0:16:59]}  Be6 {[%clk 0:16:38]} 8. f3 {[%clk 0:16:59]}  h5 {[%clk 0:16:38]} 9. Qd2 {[%clk 0:16:59]}  Nbd7 {[%clk 0:16:38]} 10. Nd5 {[%clk 0:16:59]}  Bxd5 {[%clk 0:16:38]} 11. exd5 {[%clk 0:16:59]}  g6 {[%clk 0:16:38]} 12. O-O-O {[%clk 0:16:59]}  Qc7 {[%clk 0:16:38]} 13. Kb1 {[%clk 0:16:59]}  Bg7 {[%clk 0:16:38]} 14. Rg1 {[%clk 0:16:59]}  O-O {[%clk 0:16:38]} 15. g4 {[%clk 0:16:59]}  Rfc8 {[%clk 0:16:38]} 16. gxh5 {[%clk 0:16:51]}  Nxh5 {[%clk 0:16:25]} 17. Bd3 {[%clk 0:16:51]}  Nb6 {[%clk 0:16:32]} 18. Qa5 {[%clk 0:15:47]}  Nd7 {[%clk 0:15:06]} 19. Qa4 {[%clk 0:08:58]}  a5 {[%clk 0:14:12]} 20. a3 {[%clk 0:08:05]}  b5 {[%clk 0:13:10]} 21. Bxb5 {[%clk 0:07:37]}  Qxc2+ {[%clk 0:13:10]} 22. Ka2 {[%clk 0:07:37]}  Ndf6 {[%clk 0:12:22]} 23. Bc6 {[%clk 0:07:03]}  Rab8 {[%clk 0:11:32]} 24. Ba7 {[%clk 0:07:03]}  Nf4 {[%clk 0:11:27]} 25. Rd2 {[%clk 0:06:18]}  Qf5 {[%clk 0:11:27]} 26. Bxb8 {[%clk 0:06:18]}  Rxb8 {[%clk 0:11:27]} 27. Qxa5 {[%clk 0:06:01]}  e4 {[%clk 0:10:59]} 28. Qa7 {[%clk 0:06:01]}  Rxb3 {[%clk 0:11:10]} 29. Kxb3 {[%clk 0:05:03]}  exf3 {[%clk 0:11:10]} 30. Re1 {[%clk 0:05:12]}  Ne4 {[%clk 0:09:54]} 31. Qb8+ {[%clk 0:03:37]}  Kh7 {[%clk 0:09:15]} 32. Rxe4 {[%clk 0:03:37]}  Qxe4 {[%clk 0:09:15]} 33. Qe8 {[%clk 0:03:37]}  Be5 {[%clk 0:09:28]} 34. Qxf7+ {[%clk 0:02:07]}  Kh6 {[%clk 0:09:28]} 35. Qf8+ {[%clk 0:02:07]}  Kh5 {[%clk 0:09:28]} 36. Bb5 {[%clk 0:02:07]}  Ne2 {[%clk 0:08:13]} 37. Qc8 {[%clk 0:00:57]}  Qe3+ {[%clk 0:06:24]} 38. Kc2 {[%clk 0:00:57]}  Nd4+ {[%clk 0:06:24]} 39. Rxd4 {[%clk 0:00:57]}  Qxd4 {[%clk 0:06:24]} 40. Qc4 {[%clk 0:00:36]}  Qxb2+ {[%clk 0:06:11]} 41. Kd1 {[%clk 0:00:36]}  Qxa3 {[%clk 0:06:16]} 42. h3 {[%clk 0:00:09]}  Qa1+ {[%clk 0:03:52]} 43. Kd2 {[%clk 0:00:09]}  Qg1 {[%clk 0:03:52]} 44. Bd7 {[%clk 0:00:09]}  Qf2+ {[%clk 0:02:49]} 45. Kd1 {[%clk 0:00:14]}  Bd4 {[%clk 0:02:44]} 46. Qd3 {[%clk 0:00:14]}  Be3 {[%clk 0:02:43]} 47. Be8 {[%clk 0:00:20]}  Kh4 {[%clk 0:00:55]} 48. Bxg6 {[%clk 0:00:15]}  Bf4 {[%clk 0:00:18]} 49. Be8 {[%clk 0:00:13]}  Kg3 {[%clk 0:00:18]} 50. h4 {[%clk 0:00:13]}  Qb2 {[%clk 0:00:18]} 51. Bb5 {[%clk 0:00:13]}  Qc1# {[%clk 0:00:18]} 0-1


[Site "http://www.Chess.com"]

[Event "FIDE World Rapid Chess Championship 2021"]
[White "Van Foreest, Lucas"]
[Black "Alekseenko, Kirill"]
[WhiteFideId "1039792"]
[BlackFideId "4135539"]
[WhiteElo "2374"]
[BlackElo "2637"]
[Result "0-1"]
[Round "03"]
[TimeControl "900+10"]
[Date "2021.12.26"]
[WhiteClock "0:06:21"]
[BlackClock "0:04:25"]

1. e4 {[%clk 0:15:00]}  e5 {[%clk 0:15:26]} 2. Nf3 {[%clk 0:15:36]}  Nc6 {[%clk 0:15:26]} 3. Bc4 {[%clk 0:15:36]}  Bc5 {[%clk 0:15:26]} 4. Nc3 {[%clk 0:15:36]}  Nf6 {[%clk 0:15:33]} 5. d3 {[%clk 0:16:05]}  d6 {[%clk 0:15:33]} 6. Na4 {[%clk 0:16:05]}  Bb6 {[%clk 0:15:33]} 7. a3 {[%clk 0:16:05]}  Qe7 {[%clk 0:15:33]} 8. O-O {[%clk 0:16:05]}  Be6 {[%clk 0:15:33]} 9. Bb5 {[%clk 0:16:05]}  O-O {[%clk 0:15:33]} 10. c3 {[%clk 0:16:05]}  Na5 {[%clk 0:15:05]} 11. Nxb6 {[%clk 0:16:20]}  axb6 {[%clk 0:13:20]} 12. Ba4 {[%clk 0:16:27]}  Nc6 {[%clk 0:13:20]} 13. Bc2 {[%clk 0:16:27]}  d5 {[%clk 0:13:20]} 14. Qe2 {[%clk 0:16:27]}  dxe4 {[%clk 0:12:26]} 15. dxe4 {[%clk 0:16:48]}  h6 {[%clk 0:12:26]} 16. b4 {[%clk 0:16:48]}  Nh7 {[%clk 0:11:54]} 17. a4 {[%clk 0:17:03]}  Qf6 {[%clk 0:11:54]} 18. h3 {[%clk 0:16:51]}  Ne7 {[%clk 0:10:33]} 19. Kh2 {[%clk 0:16:25]}  Ng6 {[%clk 0:09:18]} 20. g3 {[%clk 0:16:25]}  b5 {[%clk 0:09:18]} 21. Qe3 {[%clk 0:14:48]}  Rfd8 {[%clk 0:09:34]} 22. Bb2 {[%clk 0:13:03]}  Bc4 {[%clk 0:08:59]} 23. Rfd1 {[%clk 0:12:32]}  Rxd1 {[%clk 0:08:59]} 24. Bxd1 {[%clk 0:12:32]}  Rd8 {[%clk 0:08:59]} 25. Bc2 {[%clk 0:12:32]}  bxa4 {[%clk 0:08:59]} 26. Rxa4 {[%clk 0:12:32]}  Qe6 {[%clk 0:08:44]} 27. Ra1 {[%clk 0:12:06]}  c6 {[%clk 0:07:08]} 28. Rd1 {[%clk 0:11:05]}  Rxd1 {[%clk 0:07:08]} 29. Bxd1 {[%clk 0:11:05]}  Bf1 {[%clk 0:07:08]} 30. Ng1 {[%clk 0:11:00]}  Ng5 {[%clk 0:06:51]} 31. h4 {[%clk 0:11:00]}  Nh7 {[%clk 0:06:51]} 32. Bc1 {[%clk 0:10:16]}  Nf6 {[%clk 0:06:28]} 33. f3 {[%clk 0:10:16]}  Ne7 {[%clk 0:06:29]} 34. Qf2 {[%clk 0:09:58]}  Bc4 {[%clk 0:06:29]} 35. Be3 {[%clk 0:09:58]}  Bb3 {[%clk 0:06:29]} 36. Be2 {[%clk 0:09:58]}  Nc8 {[%clk 0:06:29]} 37. Bf1 {[%clk 0:09:58]}  Nd6 {[%clk 0:06:29]} 38. Bh3 {[%clk 0:09:58]}  Qe8 {[%clk 0:06:11]} 39. Ne2 {[%clk 0:09:55]}  Be6 {[%clk 0:06:11]} 40. Bc5 {[%clk 0:09:15]}  Nc4 {[%clk 0:06:02]} 41. Bg2 {[%clk 0:09:15]}  Qd8 {[%clk 0:06:02]} 42. Qe1 {[%clk 0:08:57]}  Qd3 {[%clk 0:05:38]} 43. Bf2 {[%clk 0:08:57]}  Nd2 {[%clk 0:05:38]} 44. Ng1 {[%clk 0:08:57]}  Qxc3 {[%clk 0:05:27]} 45. Qe2 {[%clk 0:08:24]}  Bc4 {[%clk 0:05:27]} 46. Qe1 {[%clk 0:08:24]}  Qxb4 {[%clk 0:05:18]} 47. Qa1 {[%clk 0:07:19]}  Qd6 {[%clk 0:04:59]} 48. Qa8+ {[%clk 0:07:20]}  Kh7 {[%clk 0:04:59]} 49. Qxb7 {[%clk 0:07:20]}  Ndxe4 {[%clk 0:04:59]} 50. Be3 {[%clk 0:06:34]}  Qd3 {[%clk 0:04:41]} 51. Qxc6 {[%clk 0:06:34]}  Qxe3 {[%clk 0:04:25]} 52. Qxc4 {[%clk 0:06:21]}  Ng4+ {[%clk 0:04:25]} 53. Kh3 {[%clk 0:06:21]}  Nef2# {[%clk 0:04:25]} 0-1


[Site "http://www.Chess.com"]

[Event "FIDE World Rapid Chess Championship 2021"]
[White "Halkias, Stelios"]
[Black "Nakamura, Hikaru"]
[WhiteFideId "4201809"]
[BlackFideId "2016192"]
[WhiteElo "2576"]
[BlackElo "2836"]
[Result "1/2-1/2"]
[Round "03"]
[TimeControl "900+10"]
[Date "2021.12.26"]
[WhiteClock "0:15:52"]
[BlackClock "0:14:42"]

1. Nf3 {[%clk 0:15:00]}  d5 {[%clk 0:15:00]} 2. d4 {[%clk 0:15:17]}  Nf6 {[%clk 0:15:00]} 3. c4 {[%clk 0:15:17]}  e6 {[%clk 0:15:00]} 4. g3 {[%clk 0:15:45]}  Be7 {[%clk 0:15:26]} 5. Bg2 {[%clk 0:15:45]}  O-O {[%clk 0:15:26]} 6. O-O {[%clk 0:15:45]}  dxc4 {[%clk 0:15:26]} 7. Ne5 {[%clk 0:15:45]}  Nc6 {[%clk 0:15:26]} 8. Bxc6 {[%clk 0:15:45]}  bxc6 {[%clk 0:15:26]} 9. Nxc6 {[%clk 0:15:45]}  Qe8 {[%clk 0:15:26]} 10. Nxe7+ {[%clk 0:15:45]}  Qxe7 {[%clk 0:15:26]} 11. Qa4 {[%clk 0:15:45]}  e5 {[%clk 0:15:26]} 12. dxe5 {[%clk 0:15:45]}  Qxe5 {[%clk 0:15:26]} 13. Qxc4 {[%clk 0:15:45]}  Be6 {[%clk 0:15:45]} 14. Qc2 {[%clk 0:15:48]}  Bf5 {[%clk 0:15:45]} 15. Qc4 {[%clk 0:15:48]}  Be6 {[%clk 0:15:28]} 16. Qc2 {[%clk 0:15:56]}  Bf5 {[%clk 0:14:42]} 17. Qc4 {[%clk 0:15:52]} 1/2-1/2


[Site "http://www.Chess.com"]

[Event "FIDE World Rapid Chess Championship 2021"]
[White "Giri, Anish"]
[Black "Santos Latasa, Jaime"]
[WhiteFideId "24116068"]
[BlackFideId "2293307"]
[WhiteElo "2767"]
[BlackElo "2618"]
[Result "1-0"]
[Round "03"]
[TimeControl "900+10"]
[Date "2021.12.26"]
[WhiteClock "0:01:56"]
[BlackClock "0:00:53"]

1. e4 {[%clk 0:15:00]}  e5 {[%clk 0:15:27]} 2. Nf3 {[%clk 0:15:28]}  Nc6 {[%clk 0:15:27]} 3. Bc4 {[%clk 0:15:28]}  Bc5 {[%clk 0:15:27]} 4. O-O {[%clk 0:15:28]}  Nf6 {[%clk 0:15:27]} 5. d3 {[%clk 0:15:28]}  a6 {[%clk 0:15:27]} 6. c3 {[%clk 0:15:43]}  d6 {[%clk 0:16:00]} 7. Re1 {[%clk 0:15:43]}  Ba7 {[%clk 0:16:00]} 8. Nbd2 {[%clk 0:15:43]}  O-O {[%clk 0:16:00]} 9. Nf1 {[%clk 0:15:43]}  Na5 {[%clk 0:16:00]} 10. Bb3 {[%clk 0:15:43]}  Nxb3 {[%clk 0:16:00]} 11. axb3 {[%clk 0:15:43]}  Re8 {[%clk 0:16:00]} 12. Ng3 {[%clk 0:15:43]}  h6 {[%clk 0:16:00]} 13. h3 {[%clk 0:15:43]}  Bd7 {[%clk 0:15:34]} 14. d4 {[%clk 0:14:56]}  Bc6 {[%clk 0:15:18]} 15. Qc2 {[%clk 0:14:56]}  Qe7 {[%clk 0:15:18]} 16. d5 {[%clk 0:14:56]}  Bd7 {[%clk 0:14:09]} 17. b4 {[%clk 0:14:56]}  c6 {[%clk 0:14:09]} 18. dxc6 {[%clk 0:14:56]}  Bxc6 {[%clk 0:14:09]} 19. c4 {[%clk 0:14:56]}  Qe6 {[%clk 0:13:27]} 20. b3 {[%clk 0:11:06]}  Rac8 {[%clk 0:13:07]} 21. Qd3 {[%clk 0:11:11]}  Bb6 {[%clk 0:10:14]} 22. Be3 {[%clk 0:09:38]}  Bxe3 {[%clk 0:09:42]} 23. Rxe3 {[%clk 0:09:43]}  Red8 {[%clk 0:08:56]} 24. Qe2 {[%clk 0:09:43]}  g6 {[%clk 0:08:34]} 25. Rd3 {[%clk 0:08:51]}  b5 {[%clk 0:08:18]} 26. Nd2 {[%clk 0:08:50]}  Bb7 {[%clk 0:08:18]} 27. Qe3 {[%clk 0:08:26]}  h5 {[%clk 0:06:54]} 28. Qh6 {[%clk 0:08:00]}  Qe7 {[%clk 0:06:23]} 29. Rf3 {[%clk 0:07:16]}  Nh7 {[%clk 0:03:59]} 30. Nxh5 {[%clk 0:06:27]}  Qf8 {[%clk 0:03:59]} 31. Qxf8+ {[%clk 0:06:27]}  Kxf8 {[%clk 0:03:47]} 32. Ng3 {[%clk 0:05:44]}  Ng5 {[%clk 0:03:47]} 33. Rd3 {[%clk 0:05:51]}  Ne6 {[%clk 0:03:47]} 34. Ne2 {[%clk 0:05:51]}  f5 {[%clk 0:03:33]} 35. exf5 {[%clk 0:05:03]}  gxf5 {[%clk 0:03:33]} 36. f4 {[%clk 0:05:03]}  Ke7 {[%clk 0:03:41]} 37. Re3 {[%clk 0:04:29]}  Kf6 {[%clk 0:03:39]} 38. Rf1 {[%clk 0:03:14]}  e4 {[%clk 0:02:47]} 39. Rf2 {[%clk 0:03:14]}  d5 {[%clk 0:01:46]} 40. cxd5 {[%clk 0:03:14]}  Nc7 {[%clk 0:01:46]} 41. Nc3 {[%clk 0:03:14]}  a5 {[%clk 0:01:46]} 42. bxa5 {[%clk 0:03:14]}  b4 {[%clk 0:01:46]} 43. Ncxe4+ {[%clk 0:01:27]}  fxe4 {[%clk 0:01:36]} 44. Nxe4+ {[%clk 0:01:27]}  Kf7 {[%clk 0:01:36]} 45. d6 {[%clk 0:01:27]}  Nd5 {[%clk 0:01:36]} 46. Ng5+ {[%clk 0:01:27]}  Kg8 {[%clk 0:01:36]} 47. Re6 {[%clk 0:01:27]}  Rd7 {[%clk 0:01:03]} 48. Rg6+ {[%clk 0:01:46]}  Kf8 {[%clk 0:01:03]} 49. f5 {[%clk 0:01:46]}  Bc6 {[%clk 0:01:03]} 50. f6 {[%clk 0:01:46]}  Rxd6 {[%clk 0:01:03]} 51. Nh7+ {[%clk 0:01:46]}  Kf7 {[%clk 0:01:03]} 52. Rg7+ {[%clk 0:01:46]}  Ke6 {[%clk 0:00:53]} 53. Re2+ {[%clk 0:01:56]}  Kf5 {[%clk 0:00:53]} 54. g3 {[%clk 0:01:56]}  Nxf6 {[%clk 0:00:53]} 55. Rg5# {[%clk 0:01:56]} 1-0


[Site "http://www.Chess.com"]

[Event "FIDE World Rapid Chess Championship 2021"]
[White "Wojtaszek, Radoslaw"]
[Black "Hovhannisyan, Robert"]
[WhiteFideId "1118358"]
[BlackFideId "13302507"]
[WhiteElo "2743"]
[BlackElo "2613"]
[Result "1/2-1/2"]
[Round "03"]
[TimeControl "900+10"]
[Date "2021.12.26"]
[WhiteClock "0:00:37"]
[BlackClock "0:00:33"]

1. c4 {[%clk 0:15:00]}  e5 {[%clk 0:15:17]} 2. d3 {[%clk 0:15:26]}  Nf6 {[%clk 0:15:17]} 3. Nf3 {[%clk 0:15:26]}  Nc6 {[%clk 0:15:17]} 4. a3 {[%clk 0:15:26]}  d5 {[%clk 0:15:31]} 5. cxd5 {[%clk 0:15:57]}  Nxd5 {[%clk 0:15:31]} 6. e3 {[%clk 0:15:57]}  g5 {[%clk 0:15:31]} 7. h3 {[%clk 0:15:57]}  Bg7 {[%clk 0:14:25]} 8. Be2 {[%clk 0:14:10]}  h5 {[%clk 0:13:37]} 9. Nfd2 {[%clk 0:14:10]}  g4 {[%clk 0:13:06]} 10. hxg4 {[%clk 0:11:28]}  hxg4 {[%clk 0:12:39]} 11. Rxh8+ {[%clk 0:11:28]}  Bxh8 {[%clk 0:12:39]} 12. g3 {[%clk 0:10:38]}  f5 {[%clk 0:12:50]} 13. Nc3 {[%clk 0:09:07]}  Be6 {[%clk 0:12:50]} 14. e4 {[%clk 0:09:07]}  Nxc3 {[%clk 0:11:00]} 15. bxc3 {[%clk 0:09:24]}  Qd7 {[%clk 0:11:00]} 16. exf5 {[%clk 0:09:33]}  Bxf5 {[%clk 0:09:51]} 17. Ne4 {[%clk 0:09:33]}  Qh7 {[%clk 0:09:51]} 18. Qa4 {[%clk 0:09:31]}  O-O-O {[%clk 0:09:17]} 19. Be3 {[%clk 0:08:26]}  Qh1+ {[%clk 0:08:52]} 20. Bf1 {[%clk 0:08:26]}  Rxd3 {[%clk 0:08:52]} 21. Nc5 {[%clk 0:08:26]}  Rxe3+ {[%clk 0:08:19]} 22. fxe3 {[%clk 0:08:00]}  Qf3 {[%clk 0:08:19]} 23. Qc4 {[%clk 0:07:55]}  Qxe3+ {[%clk 0:05:46]} 24. Kd1 {[%clk 0:07:55]}  Bf6 {[%clk 0:05:35]} 25. Bg2 {[%clk 0:02:58]}  Bg5 {[%clk 0:05:07]} 26. Qg8+ {[%clk 0:02:31]}  Bd8 {[%clk 0:02:42]} 27. Qc4 {[%clk 0:02:31]}  Be7 {[%clk 0:02:45]} 28. Bxc6 {[%clk 0:01:14]}  bxc6 {[%clk 0:02:45]} 29. Qg8+ {[%clk 0:01:14]}  Bd8 {[%clk 0:02:45]} 30. Qc4 {[%clk 0:01:14]}  Qg1+ {[%clk 0:00:57]} 31. Ke2 {[%clk 0:00:33]}  Qg2+ {[%clk 0:00:57]} 32. Kd1 {[%clk 0:00:33]}  Bc2+ {[%clk 0:00:40]} 33. Ke1 {[%clk 0:00:21]}  Qxg3+ {[%clk 0:00:40]} 34. Kf1 {[%clk 0:00:21]}  Qf3+ {[%clk 0:00:40]} 35. Kg1 {[%clk 0:00:21]}  Qe3+ {[%clk 0:00:40]} 36. Kg2 {[%clk 0:00:21]}  Qh3+ {[%clk 0:00:40]} 37. Kg1 {[%clk 0:00:21]}  Qg3+ {[%clk 0:00:40]} 38. Kh1 {[%clk 0:00:37]}  Qf3+ {[%clk 0:00:33]} 39. Kg1 {[%clk 0:00:37]}  Qe3+ {[%clk 0:00:33]} 40. Kg2 {[%clk 0:00:37]}  Qd2+ {[%clk 0:00:33]} 41. Kg1 {[%clk 0:00:37]}  Qe3+ {[%clk 0:00:33]} 42. Kg2 {[%clk 0:00:37]}  Qf3+ {[%clk 0:00:33]} 1/2-1/2


[Site "http://www.Chess.com"]

[Event "FIDE World Rapid Chess Championship 2021"]
[White "Van Foreest, Jorden"]
[Black "Dubov, Daniil"]
[WhiteFideId "1039784"]
[BlackFideId "24126055"]
[WhiteElo "2563"]
[BlackElo "2735"]
[Result "1/2-1/2"]
[Round "03"]
[TimeControl "900+10"]
[Date "2021.12.26"]
[WhiteClock "0:01:36"]
[BlackClock "0:01:00"]

1. e4 {[%clk 0:15:00]}  e5 {[%clk 0:15:19]} 2. Nf3 {[%clk 0:15:23]}  Nc6 {[%clk 0:15:19]} 3. Bb5 {[%clk 0:15:23]}  a6 {[%clk 0:15:19]} 4. Ba4 {[%clk 0:15:29]}  Nf6 {[%clk 0:15:50]} 5. O-O {[%clk 0:15:29]}  Be7 {[%clk 0:15:50]} 6. d3 {[%clk 0:15:29]}  b5 {[%clk 0:15:50]} 7. Bb3 {[%clk 0:15:29]}  d6 {[%clk 0:15:50]} 8. c3 {[%clk 0:15:29]}  O-O {[%clk 0:15:50]} 9. h3 {[%clk 0:15:29]}  Na5 {[%clk 0:15:38]} 10. Bc2 {[%clk 0:14:56]}  c5 {[%clk 0:15:38]} 11. d4 {[%clk 0:14:56]}  Qc7 {[%clk 0:15:19]} 12. d5 {[%clk 0:14:47]}  Nc4 {[%clk 0:15:19]} 13. b3 {[%clk 0:14:40]}  Nb6 {[%clk 0:14:14]} 14. a4 {[%clk 0:14:40]}  bxa4 {[%clk 0:13:19]} 15. bxa4 {[%clk 0:14:28]}  a5 {[%clk 0:13:19]} 16. Na3 {[%clk 0:14:28]}  Ba6 {[%clk 0:13:19]} 17. Re1 {[%clk 0:13:41]}  Rfb8 {[%clk 0:13:03]} 18. Rb1 {[%clk 0:13:41]}  Qd7 {[%clk 0:13:03]} 19. Nb5 {[%clk 0:13:18]}  Ne8 {[%clk 0:13:11]} 20. Qe2 {[%clk 0:11:04]}  c4 {[%clk 0:12:08]} 21. Be3 {[%clk 0:10:02]}  Nc7 {[%clk 0:11:47]} 22. Bxb6 {[%clk 0:09:46]}  Rxb6 {[%clk 0:11:09]} 23. Na3 {[%clk 0:07:31]}  Rab8 {[%clk 0:11:08]} 24. Nd2 {[%clk 0:07:31]}  Rxb1 {[%clk 0:10:37]} 25. Rxb1 {[%clk 0:06:44]}  Rxb1+ {[%clk 0:10:37]} 26. Ndxb1 {[%clk 0:06:44]}  Na8 {[%clk 0:10:37]} 27. Nxc4 {[%clk 0:06:54]}  Qc7 {[%clk 0:08:12]} 28. Bd3 {[%clk 0:06:38]}  Bxc4 {[%clk 0:08:11]} 29. Bxc4 {[%clk 0:06:38]}  Nb6 {[%clk 0:08:11]} 30. Bb5 {[%clk 0:06:38]}  Qc5 {[%clk 0:08:11]} 31. g3 {[%clk 0:06:07]}  Bg5 {[%clk 0:07:36]} 32. h4 {[%clk 0:06:07]}  Bh6 {[%clk 0:07:36]} 33. Kg2 {[%clk 0:05:33]}  g6 {[%clk 0:07:28]} 34. Qf3 {[%clk 0:05:33]}  Kg7 {[%clk 0:07:26]} 35. Be8 {[%clk 0:04:31]}  f6 {[%clk 0:07:26]} 36. h5 {[%clk 0:04:35]}  Bg5 {[%clk 0:04:54]} 37. Qg4 {[%clk 0:03:44]}  Qc7 {[%clk 0:03:13]} 38. Na3 {[%clk 0:03:38]}  Nc4 {[%clk 0:03:13]} 39. Nxc4 {[%clk 0:03:03]}  Qxc4 {[%clk 0:01:59]} 40. Qd7+ {[%clk 0:01:23]}  Kh6 {[%clk 0:02:08]} 41. Qxd6 {[%clk 0:01:23]}  Qxe4+ {[%clk 0:02:08]} 42. Kh2 {[%clk 0:01:23]}  Qf3 {[%clk 0:02:08]} 43. Qc5 {[%clk 0:01:36]}  e4 {[%clk 0:01:00]} 44. hxg6 {[%clk 0:01:36]}  Qh5+ {[%clk 0:01:00]} 45. Kg2 {[%clk 0:01:36]} 1/2-1/2


[Site "http://www.Chess.com"]